fUSD/lending_fUSD_20250111
["ID","MTS","AMOUNT","RATE_DAILY","PERIOD"]
[348510665,1736596284110,-500.0,0.0001209,2]
[348510666,1736596284121,-500.0,0.0001209,2]
[348510667,1736596284131,-500.0,0.0001209,2]
[348510668,1736596284140,-500.0,0.0001209,2]
[348510669,1736596284149,-607.2,0.0001209,2]
[348510670,1736596284159,-500.0,0.0001209,2]
[348510671,1736596284168,-500.0,0.0001209,2]
[348510672,1736596284176,-500.0,0.0001209,2]
[348510673,1736596284186,-500.0,0.0001209,2]
[348510674,1736596284195,-985.13,0.0001209,2]
[348510675,1736596284205,-500.0,0.0001209,2]
[348510676,1736596284215,-629.88,0.0001209,2]
[348510677,1736596284224,-500.0,0.0001209,2]
[348510678,1736596284234,-500.0,0.0001209,2]
[348510679,1736596284244,-500.0,0.0001209,2]
[348510680,1736596284253,-500.0,0.0001209,2]
[348510681,1736596284262,-687.58,0.0001209,2]
[348510682,1736596284271,-500.0,0.0001209,2]
[348510683,1736596284280,-500.0,0.0001209,2]
[348510684,1736596284289,-1005.72,0.0001209,2]
[348510685,1736596284298,-500.0,0.0001209,2]
[348510686,1736596284309,-500.0,0.0001209,2]
[348510687,1736596284320,-970.25,0.0001209,2]
[348510688,1736596284329,-771.92,0.0001209,2]
[348510689,1736596284338,-327.6,0.0001209,2]
[348510690,1736596284347,-622.0,0.0001209,2]
[348510691,1736596284357,-940.82,0.0001209,2]
[348510692,1736596284369,-500.0,0.0001209,2]
[348510693,1736596284378,-500.0,0.0001209,2]
[348510694,1736596284388,-500.0,0.0001209,2]
[348510695,1736596284397,-500.0,0.0001209,2]
[348510696,1736596284407,-500.0,0.0001209,2]
[348510697,1736596284416,-500.0,0.0001209,2]
[348510698,1736596284425,-785.37,0.0001209,2]
[348510699,1736596284435,-331.73590909,0.0001209,2]
[348510700,1736596284444,-500.0,0.0001209,2]
[348510701,1736596284601,-623.35,0.0001209,2]
[348510702,1736596284612,-500.0,0.0001209,2]
[348510703,1736596284623,-500.0,0.0001209,2]
[348510704,1736596284633,-520.35,0.0001209,2]
[348510705,1736596284642,-500.0,0.0001209,2]
[348510706,1736596284652,-767.07,0.0001209,2]
[348510707,1736596284661,-500.0,0.0001209,2]
[348510708,1736596284671,-249.60112783,0.0001209,2]
[348510709,1736596284679,-807.87,0.0001209,2]
[348510710,1736596284689,-465.64,0.0001209,2]
[348510711,1736596284698,-545.4,0.0001209,2]
[348510712,1736596284708,-655.09,0.0001209,2]
[348510713,1736596284718,-500.0,0.0001209,2]
[348510714,1736596284727,-565.57,0.0001209,2]
[348510715,1736596284736,-500.0,0.0001209,2]
[348510716,1736596284746,-222.6789963,0.0001209,2]
[348510717,1736596284756,-500.0,0.0001209,2]
[348510718,1736596284766,-763.42,0.0001209,2]
[348510719,1736596284776,-875.44,0.0001209,2]
[348510720,1736596284786,-500.0,0.0001209,2]
[348510721,1736596284796,-500.0,0.0001209,2]
[348510722,1736596284806,-500.0,0.0001209,2]
[348510723,1736596284816,-348.06,0.0001209,2]
[348510724,1736596284826,-500.0,0.0001209,2]
[348510725,1736596284835,-820.5,0.0001209,2]
[348510726,1736596284845,-901.65,0.0001209,2]
[348510727,1736596284856,-500.0,0.0001209,2]
[348510728,1736596284867,-355.39545852,0.0001209,2]
[348510729,1736596284876,-500.0,0.0001209,2]
[348510730,1736596284886,-892.97,0.0001209,2]
[348510731,1736596284896,-500.0,0.0001209,2]
[348510732,1736596284907,-883.1,0.0001209,2]
[348510733,1736596284916,-500.0,0.0001209,2]
[348510734,1736596284926,-500.0,0.0001209,2]
[348510735,1736596284936,-500.0,0.0001209,2]
[348510736,1736596284946,-601.65,0.0001209,2]
[348510737,1736596284956,-500.0,0.0001209,2]
[348510738,1736596284966,-500.0,0.0001209,2]
[348510739,1736596284975,-500.0,0.0001209,2]
[348510740,1736596284986,-500.0,0.0001209,2]
[348510741,1736596284996,-525.07,0.0001209,2]
[348510742,1736596285006,-885.34,0.0001209,2]
[348510743,1736596285016,-500.0,0.0001209,2]
[348510744,1736596285026,-500.0,0.0001209,2]
[348510745,1736596285036,-801.83,0.0001209,2]
[348510746,1736596285046,-500.0,0.0001209,2]
[348510747,1736596285055,-1000.13,0.0001209,2]
[348510748,1736596285065,-500.0,0.0001209,2]
[348510749,1736596285074,-500.0,0.0001209,2]
[348510750,1736596285084,-500.0,0.0001209,2]
[348510751,1736596285094,-500.0,0.0001209,2]
[348510752,1736596285104,-500.0,0.0001209,2]
[348510753,1736596285114,-500.0,0.0001209,2]
[348510754,1736596285124,-672.82,0.0001209,2]
[348510755,1736596285133,-500.0,0.0001209,2]
[348510756,1736596285143,-4278.41,0.0001209,2]
[348510757,1736596285153,-500.0,0.0001209,2]
[348510758,1736596285163,-500.0,0.0001209,2]
[348510759,1736596285173,-500.0,0.0001209,2]
[348510760,1736596285183,-879.57,0.0001209,2]
[348510761,1736596285193,-500.0,0.0001209,2]
[348510762,1736596285203,-844.74,0.0001209,2]
[348510763,1736596285213,-500.0,0.0001209,2]
[348510764,1736596285223,-814.37,0.0001209,2]
[348510765,1736596285233,-609.37,0.0001209,2]
[348510766,1736596285243,-500.0,0.0001209,2]
[348510767,1736596285253,-500.0,0.0001209,2]
[348510768,1736596285262,-2856.04,0.0001209,2]
[348510769,1736596285272,-500.0,0.0001209,2]
[348510770,1736596285282,-610.95,0.0001209,2]
[348510771,1736596285291,-514.77,0.0001209,2]
[348510772,1736596285301,-1172.7,0.0001209,2]
[348510773,1736596285313,-500.0,0.0001209,2]
[348510774,1736596285323,-587.45,0.0001209,2]
[348510775,1736596285334,-500.0,0.0001209,2]
[348510776,1736596285343,-1377.95,0.00012091,2]
[348510777,1736596285353,-2744.47,0.00012091,2]
[348510778,1736596285362,-1630.7,0.00012091,2]
[348510779,1736596285376,-2556.83,0.00012091,2]
[348510780,1736596285386,-1577.16,0.00012091,2]
[348510781,1736596285395,-3568.78,0.00012091,2]
[348510782,1736596285405,-295.120052,0.00012091,2]
[348510783,1736596285415,-500.0,0.00012091,2]
[348510784,1736596285424,-1343.06,0.00012091,2]
[348510785,1736596285434,-500.0,0.00012091,2]
[348510786,1736596285443,-1196.49,0.00012091,2]
[348510787,1736596285453,-1311.0,0.00012091,2]
[348510788,1736596285462,-1420.14,0.00012091,2]
[348510789,1736596285472,-1360.97,0.00012091,2]
[348510790,1736596285481,-2542.05,0.00012091,2]
[348510791,1736596285491,-1429.7,0.00012091,2]
[348510792,1736596285500,-1960.18,0.00012091,2]
[348510793,1736596285509,-1234.77,0.00012091,2]
[348510794,1736596285519,-1376.49,0.00012091,2]
[348510795,1736596285529,-1388.63,0.00012091,2]
[348510796,1736596285539,-1741.92,0.00012091,2]
[348510797,1736596285549,-1080.58,0.00012091,2]
[348510798,1736596285559,-150.56568107,0.00012092,2]
[348510799,1736596285569,-222138.99188775,0.000121,2]
[348510800,1736596285578,-733.808,0.000121,2]
[348510801,1736596285588,-607.824,0.000121,2]
[348510802,1736596285598,-607.824,0.000121,2]
[348510803,1736596285608,-404.4119,0.000121,2]
[348510804,1736596285620,-404.4119,0.000121,2]
[348510805,1736596285629,-152.0,0.00012115,9]
[348510806,1736596285638,-500.0,0.0001219,2]
[348510807,1736596285647,-861.7,0.00012191,2]
[348510808,1736596285657,-850.67,0.00012191,2]
[348510809,1736596285666,-571.72,0.00012191,2]
[348510810,1736596285675,-763.93,0.00012191,2]
[348510811,1736596285685,-500.0,0.00012191,2]
[348510812,1736596285694,-573.38,0.00012191,2]
[348510813,1736596285703,-1034.36,0.00012191,2]
[348510814,1736596285712,-500.0,0.00012191,2]
[348510815,1736596285722,-1165.84,0.00012191,2]
[348510816,1736596285731,-1286.39,0.00012191,2]
[348510817,1736596285741,-1479.36,0.00012191,2]
[348510818,1736596285751,-1184.05,0.00012191,2]
[348510819,1736596285760,-6055.45,0.00012191,2]
[348510820,1736596285769,-1004.16,0.00012191,2]
[348510821,1736596285778,-1557.21,0.00012191,2]
[348510822,1736596285788,-659.36,0.00012191,2]
[348510823,1736596285797,-500.0,0.00012191,2]
[348510824,1736596285806,-1000.0,0.00012191,2]
[348510825,1736596285815,-1033.16,0.00012191,2]
[348510826,1736596285824,-585.32,0.00012191,2]
[348510827,1736596285833,-629.59,0.00012191,2]
[348510828,1736596285843,-500.0,0.00012191,2]
[348510829,1736596285852,-638.76,0.00012191,2]
[348510830,1736596285862,-979.96,0.00012191,2]
[348510831,1736596285873,-2504.72,0.00012191,2]
[348510832,1736596285883,-1683.19,0.00012191,2]
[348510833,1736596285893,-500.0,0.00012191,2]
[348510834,1736596285902,-1644.65,0.00012191,2]
[348510835,1736596285911,-635.59,0.00012191,2]
[348510836,1736596285921,-1203.22,0.00012191,2]
[348510837,1736596285930,-23080.30524173,0.000122,2]
[348510838,1736596285940,-25263.58548946,0.000122,2]
[348510839,1736596285949,-160.84965257,0.000122,2]
[348510840,1736596285959,-2580.23244119,0.000122,2]
[348510841,1736596285969,-6191.92740599,0.000122,2]
[348510842,1736596285978,-36752.0,0.000122,10]
[348510843,1736596285988,-2377.44585034,0.0001221,2]
[348510844,1736596285998,-11945.42373363,0.00012218,2]
[348510845,1736596286007,-1591.35248145,0.00012254,3]
[348510846,1736596286017,-13836.76852976,0.00012265,2]
[348510847,1736596286027,-152.0,0.00012275,10]
[348510848,1736596286036,-222230.10452329,0.00012279,2]
[348510849,1736596286045,-257615.6587144,0.00012279,2]
[348510850,1736596286055,-743802.63361036,0.00012279,2]
[348510851,1736596286064,-53279.04285531,0.00012279,2]
[348510852,1736596286074,-151.0,0.00012279,2]
[348510853,1736596286084,-153.945481,0.00012279,2]
[348510854,1736596286093,-200.0,0.0001228,2]
[348510855,1736596286103,-35069.11911154,0.0001229,2]
[348510856,1736596286112,-32133.94838753,0.00012296,2]
[348510857,1736596286123,-20000.0,0.00012299,3]
[348510858,1736596286132,-2000.0,0.00012299,2]
[348510859,1736596286142,-2000.0,0.00012299,2]
[348510860,1736596286151,-2000.0,0.00012299,2]
[348510861,1736596286160,-2000.0,0.00012299,2]
[348510862,1736596286170,-2000.0,0.00012299,2]
[348510863,1736596286179,-2000.0,0.00012299,2]
[348510864,1736596286189,-2000.0,0.00012299,2]
[348510865,1736596286200,-2000.0,0.00012299,2]
[348510866,1736596286209,-2000.0,0.00012299,2]
[348510867,1736596286219,-2000.0,0.00012299,2]
[348510868,1736596286229,-3617.54030729,0.00012299,2]
[348510869,1736596286238,-2116001.97647047,0.000123,2]
[348510870,1736596286574,-3738.546642,0.000123,2]
[348510871,1736596286590,-1096.5,0.000123,2]
[348510872,1736596286829,-13964.58547709,0.000123,2]
[348510873,1736596286840,-596.51555169,0.000123,2]
[348510874,1736596286852,-947.8,0.000123,2]
[348510875,1736596286863,-2589.50044772,0.000123,2]
[348510876,1736596287203,-500.0,9.897e-05,2]
[348510877,1736596287213,-500.0,9.897e-05,2]
[348510878,1736596287223,-500.0,9.999e-05,2]
[348510879,1736596287232,-365.0,0.000105,2]
[348510880,1736596287242,-733.808,0.000121,2]
[348510881,1736596287251,-775913.32665379,0.000123,2]
[348510882,1736596287501,-500.0,9.897e-05,2]
[348510883,1736596287510,-500.0,9.897e-05,2]
[348510884,1736596287519,-216.61032074,0.00010273,2]
[348510885,1736596287529,-21501.04601066,0.000123,2]
[348510886,1736596287540,-5387.1575685,0.000123,2]
[348510887,1736596287550,-10046.19,0.000123,2]
[348510888,1736596287677,-159.83968,9.973e-05,2]
[348510889,1736596287687,-241.35060693,0.00011383,5]
[348510890,1736596287696,-9291.15379307,0.000123,2]
[348510891,1736596287713,-901.87,0.000123,2]
[348510896,1736597161974,911.95,8.219e-05,2]
[348510899,1736597431591,-515.24829337,8.703e-05,2]
[348510900,1736597431602,-547.91945619,8.703e-05,2]
[348510901,1736597431614,-3278.13225044,8.703e-05,2]
[348510902,1736597431624,-297.31,8.748e-05,2]
[348510903,1736597431635,-2243.81,8.838e-05,2]
[348510904,1736597431645,-250.0,8.881e-05,2]
[348510905,1736597431655,-300.0,8.954e-05,2]
[348510906,1736597431664,-23890.0,8.955e-05,2]
[348510907,1736597431676,-618.93,8.957e-05,2]
[348510908,1736597431685,-171.61,9.018e-05,2]
[348510909,1736597431694,-5311.46800088,9.037e-05,2]
[348510910,1736597431703,-5000.0,9.037e-05,2]
[348510911,1736597431714,-5000.0,9.037e-05,2]
[348510912,1736597431724,-5000.0,9.037e-05,2]
[348510913,1736597431733,-5000.0,9.037e-05,2]
[348510914,1736597431742,-1026.04,9.039e-05,2]
[348510915,1736597431752,-702.42,9.061e-05,2]
[348510916,1736597431761,-1233.84,9.077e-05,2]
[348510917,1736597431771,-1000.0,9.094e-05,2]
[348510918,1736597431780,-250.0,9.129e-05,2]
[348510919,1736597431789,-5548.94938915,9.205e-05,2]
[348510920,1736597431801,-702.17266377,9.205e-05,2]
[348510921,1736597431819,-688.12981985,9.205e-05,2]
[348510922,1736597431839,-8651.74812723,9.205e-05,2]
[348510923,1736597431849,-200.0,9.205e-05,2]
[348510924,1736597431858,-167.12,9.223e-05,2]
[348510925,1736597431868,-504.98,9.258e-05,2]
[348510926,1736597431877,-162.99,9.42e-05,2]
[348510927,1736597431886,-600.0,9.664e-05,2]
[348510928,1736597431895,-500.0,9.664e-05,2]
[348510929,1736597431904,-1583.9626,9.797e-05,2]
[348510930,1736597431914,-1890.4576,9.797e-05,2]
[348510931,1736597431923,-420.0,9.849e-05,2]
[348510932,1736597431932,-500.0,9.873e-05,2]
[348510933,1736597431942,-500.0,9.896e-05,2]
[348510934,1736597431953,-500.0,9.896e-05,2]
[348510935,1736597431962,-500.0,9.896e-05,2]
[348510936,1736597431971,-500.0,9.896e-05,2]
[348510937,1736597431980,-628.28,9.896e-05,2]
[348510938,1736597431989,-500.0,9.896e-05,2]
[348510939,1736597431998,-500.0,9.896e-05,2]
[348510940,1736597432008,-500.0,9.896e-05,2]
[348510941,1736597432017,-500.0,9.896e-05,2]
[348510942,1736597432027,-500.0,9.896e-05,2]
[348510943,1736597432037,-500.0,9.896e-05,2]
[348510944,1736597432047,-500.0,9.896e-05,2]
[348510945,1736597432056,-500.0,9.896e-05,2]
[348510946,1736597432066,-573.65,9.896e-05,2]
[348510948,1736597432075,-500.0,9.896e-05,2]
[348510949,1736597432084,-500.0,9.896e-05,2]
[348510951,1736597432093,-500.0,9.896e-05,2]
[348510954,1736597432103,-500.0,9.896e-05,2]
[348510955,1736597432112,-500.0,9.896e-05,2]
[348510957,1736597432122,-500.0,9.896e-05,2]
[348510959,1736597432131,-500.0,9.896e-05,2]
[348510961,1736597432140,-500.0,9.896e-05,2]
[348510963,1736597432150,-500.0,9.896e-05,2]
[348510965,1736597432158,-555.27,9.896e-05,2]
[348510967,1736597432169,-500.0,9.896e-05,2]
[348510969,1736597432178,-500.0,9.896e-05,2]
[348510971,1736597432187,-500.0,9.896e-05,2]
[348510973,1736597432196,-500.0,9.896e-05,2]
[348510975,1736597432205,-500.0,9.896e-05,2]
[348510977,1736597432215,-437.91573981,9.896e-05,2]
[348510979,1736597432224,-500.0,9.896e-05,2]
[348510981,1736597432234,-500.0,9.896e-05,2]
[348510983,1736597432244,-500.0,9.896e-05,2]
[348510985,1736597432253,-500.0,9.896e-05,2]
[348510987,1736597432262,-500.0,9.896e-05,2]
[348510989,1736597432272,-500.0,9.896e-05,2]
[348510991,1736597432281,-307.03562551,9.896e-05,2]
[348510993,1736597432290,-500.0,9.896e-05,2]
[348510995,1736597432300,-500.0,9.896e-05,2]
[348510997,1736597432310,-500.0,9.896e-05,2]
[348510999,1736597432320,-500.0,9.896e-05,2]
[348511001,1736597432329,-500.0,9.896e-05,2]
[348511004,1736597432339,-500.0,9.896e-05,2]
[348511006,1736597432348,-500.0,9.896e-05,2]
[348511009,1736597432357,-500.0,9.896e-05,2]
[348511012,1736597432366,-500.0,9.896e-05,2]
[348511014,1736597432376,-500.0,9.896e-05,2]
[348511017,1736597432385,-500.0,9.896e-05,2]
[348511019,1736597432394,-500.0,9.896e-05,2]
[348511022,1736597432404,-500.0,9.896e-05,2]
[348511025,1736597432413,-500.0,9.896e-05,2]
[348511026,1736597432421,-500.0,9.896e-05,2]
[348511027,1736597432430,-504.8605703,9.896e-05,2]
[348511029,1736597432439,-500.0,9.896e-05,2]
[348511030,1736597432448,-500.0,9.896e-05,2]
[348511031,1736597432457,-367.22463614,9.896e-05,2]
[348511032,1736597432466,-500.0,9.896e-05,2]
[348511033,1736597432476,-500.0,9.896e-05,2]
[348511034,1736597432485,-500.0,9.896e-05,2]
[348511035,1736597432494,-500.0,9.896e-05,2]
[348511036,1736597432502,-500.0,9.896e-05,2]
[348511038,1736597432512,-284.32763586,9.896e-05,2]
[348511039,1736597432521,-500.0,9.896e-05,2]
[348511041,1736597432530,-500.0,9.896e-05,2]
[348511044,1736597432539,-500.0,9.896e-05,2]
[348511047,1736597432548,-500.0,9.896e-05,2]
[348511050,1736597432557,-500.0,9.896e-05,2]
[348511053,1736597432567,-500.0,9.896e-05,2]
[348511056,1736597432576,-500.0,9.896e-05,2]
[348511059,1736597432585,-500.62854446,9.896e-05,2]
[348511062,1736597432595,-500.0,9.896e-05,2]
[348511065,1736597432604,-500.0,9.896e-05,2]
[348511068,1736597432613,-500.0,9.896e-05,2]
[348511070,1736597432622,-500.0,9.896e-05,2]
[348511073,1736597432632,-500.0,9.896e-05,2]
[348511075,1736597432642,-500.77485335,9.896e-05,2]
[348511076,1736597432651,-500.0,9.896e-05,2]
[348511077,1736597432660,-500.0,9.896e-05,2]
[348511078,1736597432669,-500.0,9.896e-05,2]
[348511096,1736597432912,-558.90940947,9.896e-05,2]
[348511099,1736597432921,-500.0,9.896e-05,2]
[348511101,1736597432932,-500.0,9.896e-05,2]
[348511102,1736597432941,-500.0,9.896e-05,2]
[348511103,1736597432954,-500.0,9.896e-05,2]
[348511104,1736597432963,-2168.47,9.896e-05,2]
[348511105,1736597432972,-542.81,9.896e-05,2]
[348511106,1736597432980,-500.0,9.896e-05,2]
[348511107,1736597432991,-500.0,9.896e-05,2]
[348511108,1736597433000,-500.0,9.896e-05,2]
[348511109,1736597433009,-500.0,9.896e-05,2]
[348511110,1736597433019,-1302.44,9.896e-05,2]
[348511111,1736597433029,-500.0,9.896e-05,2]
[348511112,1736597433039,-500.0,9.896e-05,2]
[348511113,1736597433048,-500.0,9.896e-05,2]
[348511114,1736597433057,-500.0,9.896e-05,2]
[348511115,1736597433066,-500.0,9.896e-05,2]
[348511116,1736597433076,-986.22,9.896e-05,2]
[348511117,1736597433085,-716.39,9.896e-05,2]
[348511118,1736597433095,-500.0,9.896e-05,2]
[348511119,1736597433104,-500.0,9.896e-05,2]
[348511120,1736597433114,-643.61,9.896e-05,2]
[348511121,1736597433123,-500.0,9.896e-05,2]
[348511122,1736597433133,-2253.75,9.896e-05,2]
[348511123,1736597433143,-500.0,9.896e-05,2]
[348511124,1736597433152,-500.0,9.896e-05,2]
[348511125,1736597433161,-543.99,9.896e-05,2]
[348511126,1736597433171,-500.0,9.896e-05,2]
[348511127,1736597433180,-373.34245107,9.896e-05,2]
[348511128,1736597433190,-500.0,9.896e-05,2]
[348511129,1736597433199,-500.0,9.896e-05,2]
[348511130,1736597433208,-916.36,9.896e-05,2]
[348511131,1736597433218,-500.0,9.896e-05,2]
[348511132,1736597433227,-500.0,9.896e-05,2]
[348511133,1736597433236,-500.0,9.896e-05,2]
[348511134,1736597433246,-578.34,9.896e-05,2]
[348511135,1736597433256,-578.34,9.896e-05,2]
[348511136,1736597433266,-557.78,9.896e-05,2]
[348511137,1736597433276,-1664.71,9.896e-05,2]
[348511138,1736597433285,-500.0,9.896e-05,2]
[348511139,1736597433295,-500.0,9.896e-05,2]
[348511140,1736597433304,-500.0,9.896e-05,2]
[348511141,1736597433314,-955.55,9.896e-05,2]
[348511142,1736597433323,-500.0,9.896e-05,2]
[348511143,1736597433333,-500.0,9.896e-05,2]
[348511144,1736597433342,-500.0,9.896e-05,2]
[348511145,1736597433351,-2737.36,9.896e-05,2]
[348511146,1736597433361,-500.0,9.896e-05,2]
[348511147,1736597433371,-500.0,9.896e-05,2]
[348511148,1736597433380,-500.0,9.896e-05,2]
[348511149,1736597433390,-500.0,9.896e-05,2]
[348511150,1736597433399,-500.0,9.896e-05,2]
[348511151,1736597433409,-543.37,9.896e-05,2]
[348511152,1736597433418,-1169.62,9.896e-05,2]
[348511153,1736597433428,-500.0,9.896e-05,2]
[348511154,1736597433437,-500.0,9.896e-05,2]
[348511155,1736597433447,-500.0,9.896e-05,2]
[348511156,1736597433456,-500.0,9.896e-05,2]
[348511157,1736597433465,-1072.01,9.896e-05,2]
[348511158,1736597433474,-500.0,9.896e-05,2]
[348511159,1736597433484,-500.0,9.896e-05,2]
[348511160,1736597433493,-500.0,9.896e-05,2]
[348511161,1736597433503,-1644.64,9.896e-05,2]
[348511162,1736597433512,-865.21,9.896e-05,2]
[348511163,1736597433522,-1683.29,9.896e-05,2]
[348511164,1736597433531,-500.0,9.896e-05,2]
[348511165,1736597433540,-1378.72,9.896e-05,2]
[348511166,1736597433550,-2661.33,9.896e-05,2]
[348511167,1736597433559,-1005.4,9.896e-05,2]
[348511168,1736597433568,-500.0,9.896e-05,2]
[348511169,1736597433577,-640.53522863,9.896e-05,2]
[348511170,1736597433586,-500.0,9.896e-05,2]
[348511171,1736597433595,-500.0,9.896e-05,2]
[348511172,1736597433605,-3163.08,9.896e-05,2]
[348511173,1736597433615,-500.0,9.896e-05,2]
[348511174,1736597433625,-500.0,9.896e-05,2]
[348511175,1736597433635,-500.0,9.896e-05,2]
[348511176,1736597433644,-3026.43,9.896e-05,2]
[348511177,1736597433653,-927.48,9.896e-05,2]
[348511178,1736597433663,-1692.93,9.896e-05,2]
[348511179,1736597433672,-500.0,9.896e-05,2]
[348511180,1736597433681,-153.38865628,9.896e-05,2]
[348511181,1736597433690,-314.39200116,9.896e-05,2]
[348511182,1736597433699,-500.0,9.896e-05,2]
[348511183,1736597433708,-500.0,9.896e-05,2]
[348511184,1736597433716,-500.0,9.896e-05,2]
[348511185,1736597433725,-500.0,9.896e-05,2]
[348511186,1736597433734,-1249.42,9.896e-05,2]
[348511187,1736597433743,-500.0,9.896e-05,2]
[348511188,1736597433752,-500.0,9.896e-05,2]
[348511189,1736597433762,-500.0,9.896e-05,2]
[348511190,1736597433771,-500.0,9.896e-05,2]
[348511191,1736597433780,-500.0,9.896e-05,2]
[348511192,1736597433789,-1080.18,9.896e-05,2]
[348511193,1736597433799,-500.0,9.896e-05,2]
[348511194,1736597433808,-1426.27,9.896e-05,2]
[348511195,1736597433817,-500.0,9.896e-05,2]
[348511196,1736597433827,-1995.2,9.896e-05,2]
[348511197,1736597433836,-500.0,9.896e-05,2]
[348511198,1736597433845,-765.62,9.896e-05,2]
[348511199,1736597433855,-583.12511081,9.896e-05,2]
[348511200,1736597433864,-538.93,9.896e-05,2]
[348511201,1736597433873,-500.0,9.896e-05,2]
[348511202,1736597433883,-500.0,9.896e-05,2]
[348511203,1736597433893,-1456.54,9.896e-05,2]
[348511204,1736597433902,-500.0,9.896e-05,2]
[348511205,1736597433915,-500.0,9.896e-05,2]
[348511206,1736597433925,-500.0,9.896e-05,2]
[348511207,1736597433935,-1067.27,9.896e-05,2]
[348511208,1736597433946,-500.0,9.896e-05,2]
[348511209,1736597433955,-500.0,9.896e-05,2]
[348511210,1736597433965,-1081.51,9.896e-05,2]
[348511211,1736597433974,-500.0,9.896e-05,2]
[348511212,1736597433984,-500.0,9.896e-05,2]
[348511213,1736597433993,-3472.83,9.896e-05,2]
[348511214,1736597434002,-500.0,9.896e-05,2]
[348511215,1736597434012,-500.0,9.896e-05,2]
[348511216,1736597434021,-500.0,9.896e-05,2]
[348511217,1736597434031,-500.0,9.896e-05,2]
[348511218,1736597434041,-500.0,9.896e-05,2]
[348511219,1736597434050,-847.86,9.896e-05,2]
[348511220,1736597434060,-501.9500019,9.896e-05,2]
[348511221,1736597434070,-500.0,9.896e-05,2]
[348511222,1736597434079,-500.0,9.896e-05,2]
[348511223,1736597434088,-371.26382288,9.896e-05,2]
[348511224,1736597434098,-500.0,9.896e-05,2]
[348511225,1736597434106,-500.0,9.896e-05,2]
[348511226,1736597434116,-500.0,9.896e-05,2]
[348511227,1736597434125,-1358.71,9.896e-05,2]
[348511228,1736597434135,-500.0,9.896e-05,2]
[348511229,1736597434144,-500.0,9.897e-05,2]
[348511230,1736597434153,-500.0,9.897e-05,2]
[348511231,1736597434162,-500.0,9.897e-05,2]
[348511232,1736597434172,-500.0,9.897e-05,2]
[348511233,1736597434182,-500.0,9.897e-05,2]
[348511234,1736597434192,-500.0,9.897e-05,2]
[348511235,1736597434201,-500.0,9.897e-05,2]
[348511236,1736597434211,-500.0,9.897e-05,2]
[348511237,1736597434220,-500.0,9.897e-05,2]
[348511238,1736597434230,-500.0,9.897e-05,2]
[348511239,1736597434239,-500.0,9.897e-05,2]
[348511240,1736597434249,-500.0,9.897e-05,2]
[348511241,1736597434258,-500.0,9.897e-05,2]
[348511242,1736597434268,-500.93442923,9.897e-05,2]
[348511243,1736597434278,-500.0,9.897e-05,2]
[348511244,1736597434288,-500.0,9.897e-05,2]
[348511245,1736597434297,-500.0,9.897e-05,2]
[348511246,1736597434307,-500.0,9.897e-05,2]
[348511247,1736597434317,-500.0,9.897e-05,2]
[348511248,1736597434326,-500.0,9.897e-05,2]
[348511249,1736597434336,-500.0,9.897e-05,2]
[348511250,1736597434345,-503.37489412,9.897e-05,2]
[348511251,1736597434354,-500.0,9.897e-05,2]
[348511252,1736597434364,-500.0,9.897e-05,2]
[348511253,1736597434373,-500.0,9.897e-05,2]
[348511254,1736597434382,-500.0,9.897e-05,2]
[348511255,1736597434391,-500.0,9.897e-05,2]
[348511256,1736597434400,-500.0,9.897e-05,2]
[348511257,1736597434410,-500.0,9.897e-05,2]